bitfinex/quotes_BTCUSD_20230106
["timestamp","ask_amount","ask_price","bid_price","bid_amount"]
[1673013084364,0.055,16792.0,16791.0,0.62458783]
[1673013084583,1.25294179,16792.0,16791.0,0.01004835]
[1673013084906,1.60476936,16792.0,16791.0,0.01004835]
[1673013085171,2.50029036,16792.0,16791.0,0.01004835]
[1673013085438,2.20029036,16792.0,16791.0,0.01004835]
[1673013086809,1.60476936,16792.0,16791.0,0.01004835]
[1673013088383,2.50029036,16792.0,16791.0,0.01004835]
[1673013088893,2.20029036,16792.0,16791.0,0.01004835]
[1673013089153,1.60476936,16792.0,16791.0,0.01004835]
[1673013089924,2.20029036,16792.0,16791.0,0.01004835]
[1673013090182,1.59786957,16792.0,16791.0,0.01004835]
[1673013090458,2.20029036,16792.0,16791.0,0.01004835]
[1673013091517,2.47423527,16792.0,16791.0,0.01004835]
[1673013091805,3.37668294,16792.0,16791.0,0.01004835]
[1673013092339,3.07668294,16792.0,16791.0,0.01004835]
[1673013093125,3.68866494,16792.0,16791.0,0.01004835]
[1673013093396,3.98866494,16792.0,16791.0,0.01004835]
[1673013093662,3.98176515,16792.0,16791.0,0.01004835]
[1673013094451,3.36978315,16792.0,16791.0,0.01004835]
[1673013094663,3.67222429,16792.0,16791.0,0.01004835]
[1673013094983,3.97222429,16792.0,16791.0,0.01004835]
[1673013095242,3.07670329,16792.0,16791.0,0.01004835]
[1673013096584,2.77426215,16792.0,16791.0,0.01004835]
[1673013097108,2.76926215,16792.0,16791.0,0.01004835]
[1673013099063,3.38124415,16792.0,16791.0,0.01004835]
[1673013100064,3.38124415,16792.0,16791.0,0.53101178]
[1673013100065,2.11743458,16792.0,16791.0,0.53101178]
[1673013100314,2.12469426,16792.0,16791.0,0.53101178]
[1673013100868,2.73667626,16792.0,16791.0,0.53101178]
[1673013101117,2.73667626,16792.0,16791.0,0.01004835]
[1673013101118,2.12469426,16792.0,16791.0,0.01004835]
[1673013101369,1.85074935,16792.0,16791.0,0.01004835]
[1673013101605,1.85074935,16792.0,16791.0,0.64293448]
[1673013102851,1.25522835,16792.0,16791.0,0.64293448]
[1673013103114,0.05,16792.0,16791.0,0.64293448]
[1673013103372,0.58575432,16792.0,16791.0,1.88892384]
[1673013103625,0.58575432,16792.0,16791.0,2.50090584]
[1673013104380,0.58575432,16792.0,16791.0,1.88892384]
[1673013104644,0.58575432,16792.0,16791.0,2.24935989]
[1673013104935,0.58575432,16792.0,16791.0,1.25603771]
[1673013105141,0.05,16792.0,16791.0,1.93358587]
[1673013105926,0.05,16792.0,16791.0,1.33802887]
[1673013106201,0.58575432,16792.0,16791.0,1.33802887]
[1673013106465,0.05,16792.0,16791.0,1.33802887]
[1673013107206,0.05,16792.0,16791.0,1.33873351]
[1673013107480,0.045,16792.0,16791.0,1.33873351]
[1673013107712,0.58075432,16792.0,16791.0,1.33873351]
[1673013107962,0.58075432,16792.0,16791.0,0.80680115]
[1673013108209,0.58075432,16792.0,16791.0,1.93404087]
[1673013108473,0.58075432,16792.0,16791.0,1.40165351]
[1673013108777,0.58075432,16792.0,16791.0,0.80609651]
[1673013109517,0.58075432,16792.0,16791.0,1.40165351]
[1673013110254,0.58075432,16792.0,16791.0,2.5289939]
[1673013110255,0.045,16792.0,16791.0,2.5289939]
[1673013110498,0.045,16792.0,16791.0,3.1409759]
[1673013110753,0.045,16792.0,16791.0,1.40165351]
[1673013111778,0.58075432,16792.0,16791.0,1.40165351]
[1673013112274,0.58075432,16792.0,16791.0,0.80609651]
[1673013112600,0.58075432,16792.0,16791.0,1.40165351]
[1673013113028,0.58075432,16792.0,16791.0,0.80609651]
[1673013114315,0.58075432,16792.0,16791.0,1.40165351]
[1673013115837,0.5806464,16792.0,16791.0,1.40165351]
[1673013117680,0.5806464,16792.0,16791.0,2.52909295]
[1673013117899,0.04489208,16792.0,16791.0,2.52909295]
[1673013118413,0.04489208,16792.0,16791.0,1.99721051]
[1673013119405,0.04489208,16792.0,16791.0,2.52899246]
[1673013119651,0.49110758,16792.0,16791.0,2.52899246]
[1673013120391,0.66953635,16792.0,16791.0,1.8514443]
[1673013120638,0.491064,16792.0,16791.0,2.93038651]
[1673013120888,0.84800358,16792.0,16791.0,3.56966058]
[1673013121135,0.84800358,16792.0,16791.0,2.5655013]
[1673013121136,0.66953635,16792.0,16791.0,2.5655013]
[1673013121636,0.66953635,16792.0,16791.0,3.82364098]
[1673013121884,0.66953635,16792.0,16791.0,3.92364098]
[1673013122133,0.66953635,16792.0,16791.0,3.2774833]
[1673013122388,0.49106678,16792.0,16791.0,3.7172176]
[1673013122642,0.04489208,16792.0,16791.0,3.8357176]
[1673013123659,2.4461747,16793.0,16791.0,3.8317176]
[1673013123917,2.4461747,16793.0,16792.0,0.88559819]
[1673013124179,2.17847001,16793.0,16792.0,3.28414319]
[1673013124688,0.4461747,16795.0,16792.0,3.71648506]
[1673013124953,0.80311428,16795.0,16794.0,0.2355]
[1673013125217,0.80311428,16795.0,16794.0,3.17048452]
[1673013125218,0.17847001,16795.0,16794.0,3.17048452]
[1673013125729,0.19147001,16795.0,16794.0,3.17048452]
[1673013126232,0.4591747,16795.0,16794.0,3.17048452]
[1673013126477,0.19147001,16795.0,16794.0,3.52753297]
[1673013126723,0.4591747,16795.0,16794.0,2.91555097]
[1673013126980,0.4591747,16795.0,16794.0,2.55850252]
[1673013127222,0.4591747,16795.0,16794.0,3.12995324]
[1673013127470,0.4461747,16795.0,16794.0,3.12995324]
[1673013127720,0.4541747,16795.0,16794.0,3.17095324]
[1673013127976,0.4541747,16795.0,16794.0,3.52804856]
[1673013128489,0.18647001,16795.0,16794.0,3.47592455]
[1673013128768,0.011,16795.0,16794.0,2.41994532]
[1673013129042,0.011,16795.0,16794.0,3.08533688]
[1673013129531,0.011,16795.0,16794.0,2.72824156]
[1673013130030,0.27870469,16795.0,16794.0,2.72824156]
[1673013130266,0.011,16795.0,16794.0,2.72824156]
[1673013130531,0.011,16795.0,16794.0,3.18634892]
[1673013130784,0.011,16795.0,16794.0,3.13293926]
[1673013131038,0.011,16795.0,16794.0,3.48623319]
[1673013132906,0.011,16795.0,16794.0,4.31661858]
[1673013133120,0.011,16795.0,16794.0,4.83036685]
[1673013134378,0.011,16795.0,16794.0,4.31661858]
[1673013136261,0.011,16795.0,16794.0,4.92869699]
[1673013137111,0.011,16795.0,16794.0,4.31661858]
[1673013137904,0.011,16795.0,16794.0,4.18911562]
[1673013139003,0.011,16795.0,16794.0,3.48623319]
[1673013139284,0.011,16795.0,16794.0,4.1459482]
[1673013140607,0.011,16795.0,16794.0,3.48623319]
[1673013140899,0.011,16795.0,16794.0,4.1012531]
[1673013141419,0.011,16795.0,16794.0,3.48623319]
[1673013141679,0.011,16795.0,16794.0,4.17413139]
[1673013144150,0.011,16795.0,16794.0,3.2447302]
[1673013144380,0.011,16795.0,16794.0,1.9197982]
[1673013145249,0.16301,16795.0,16794.0,1.3243482]
[1673013145467,0.61304383,16795.0,16794.0,0.7288982]
[1673013145687,0.88074852,16795.0,16794.0,0.7288982]
[1673013145927,0.61304383,16795.0,16794.0,0.7288982]
[1673013146108,0.72873852,16795.0,16794.0,0.7288982]
[1673013146366,0.18891942,16795.0,16794.0,0.7288982]
[1673013146611,0.45662411,16795.0,16794.0,0.7288982]
[1673013148066,0.18891942,16795.0,16794.0,1.56813112]
[1673013148563,0.18891942,16795.0,16794.0,2.16358112]
[1673013148792,0.18891942,16795.0,16794.0,1.9197982]
[1673013149529,0.011,16795.0,16794.0,3.28978938]
[1673013149760,0.011,16795.0,16794.0,3.90170626]
[1673013152315,0.011,16795.0,16794.0,3.21380806]
[1673013152778,0.011,16795.0,16794.0,3.89474017]
[1673013153023,0.011,16795.0,16794.0,4.38376089]
[1673013154462,0.011,16795.0,16794.0,3.89474017]
[1673013154726,0.18891942,16795.0,16794.0,3.35719899]
[1673013155942,0.18891942,16795.0,16794.0,2.76174899]
[1673013156188,0.45662411,16795.0,16794.0,2.76174899]
[1673013156439,0.63564427,16795.0,16794.0,2.76174899]
[1673013156920,0.63564427,16795.0,16794.0,3.42524519]
[1673013158147,0.63564427,16795.0,16794.0,3.96278637]
[1673013158387,0.81415508,16795.0,16794.0,3.96278637]
[1673013158876,1.08190852,16795.0,16794.0,4.52992571]
[1673013159137,0.81415508,16795.0,16794.0,4.52992571]
[1673013159371,1.0819096,16795.0,16794.0,3.8489936]
[1673013159610,0.45724931,16795.0,16794.0,4.99157628]
[1673013160088,0.6356941,16795.0,16794.0,3.82898694]
[1673013160364,0.63569232,16795.0,16794.0,3.82969145]
[1673013160597,0.81415508,16795.0,16794.0,3.29144576]
[1673013160839,0.81424503,16795.0,16794.0,3.23334048]
[1673013161080,0.81424503,16795.0,16794.0,3.82879048]
[1673013162085,0.81424503,16795.0,16794.0,4.32298513]
[1673013162350,0.4572155,16795.0,16794.0,3.78564041]
[1673013162565,0.011,16795.0,16794.0,3.29144576]
[1673013162820,0.011,16795.0,16794.0,1.18351756]
[1673013165024,0.011,16795.0,16794.0,1.77896756]
[1673013166499,0.011,16795.0,16794.0,1.18351756]
[1673013168449,0.45747664,16795.0,16794.0,1.18351756]
[1673013168976,0.45747664,16795.0,16794.0,1.77896756]
[1673013169256,0.81464851,16795.0,16794.0,2.5939519]
[1673013169502,0.81464851,16795.0,16794.0,2.31650874]
[1673013171129,0.45747664,16795.0,16794.0,1.18351756]
[1673013171641,0.45747664,16795.0,16794.0,1.77896756]
[1673013173242,0.45747664,16795.0,16794.0,2.39094956]
[1673013173428,0.011,16795.0,16794.0,2.39086227]
[1673013174228,0.011,16795.0,16794.0,1.77888027]
[1673013174623,0.011,16795.0,16794.0,2.65495469]
[1673013174624,0.8147004,16795.0,16794.0,2.65495469]
[1673013175476,0.8037004,16795.0,16794.0,2.6141071]
[1673013175647,0.8037004,16795.0,16794.0,2.7481071]
[1673013175648,0.8077004,16795.0,16794.0,2.7481071]
[1673013176192,0.8077004,16795.0,16794.0,2.40947557]
[1673013176691,0.8077004,16795.0,16794.0,2.52737557]
[1673013176973,0.17858738,16795.0,16794.0,2.21534289]
[1673013177259,0.44646846,16797.0,16795.0,0.57858737]
[1673013177260,0.17858738,16797.0,16795.0,0.57858737]
[1673013177498,0.01269622,16798.0,16796.0,1.81083015]
[1673013177748,0.01269622,16798.0,16797.0,0.611982]
[1673013177749,1.13974937,16798.0,16797.0,0.611982]
[1673013177999,1.11436616,16798.0,16796.0,0.56221341]
[1673013178279,1.11436616,16798.0,16796.0,0.73821341]
[1673013178280,0.003,16797.0,16796.0,0.73821341]
[1673013178521,0.53575432,16798.0,16796.0,0.56221341]
[1673013178780,0.53575432,16798.0,16797.0,0.007]
[1673013178781,0.58375432,16798.0,16797.0,0.007]
[1673013179016,0.5486667,16799.0,16797.0,0.1523]
[1673013179664,0.5486667,16799.0,16797.0,0.24148134]
[1673013179830,0.5486667,16799.0,16797.0,0.83681334]
[1673013180076,0.01291238,16799.0,16798.0,0.69738264]
[1673013180329,0.01291238,16799.0,16798.0,1.29269064]
[1673013180857,0.01291238,16799.0,16798.0,1.90467264]
[1673013181077,0.05991238,16799.0,16798.0,2.10898527]
[1673013181322,0.05991238,16799.0,16798.0,2.27027264]
[1673013181606,0.05991238,16799.0,16798.0,1.57289]
[1673013181828,0.68334379,16799.0,16798.0,0.977582]
[1673013182124,0.68334379,16799.0,16798.0,2.18853723]
[1673013182612,0.05991238,16799.0,16798.0,2.18853723]
[1673013183860,0.50585856,16799.0,16798.0,2.18853723]
[1673013184650,0.50585856,16799.0,16798.0,1.57655523]
[1673013184870,0.50585856,16799.0,16798.0,1.22195523]
[1673013185634,0.50585856,16799.0,16798.0,0.606308]
[1673013185969,0.73379494,16799.0,16798.0,0.011]
[1673013188227,0.5057977,16799.0,16798.0,1.15022304]
[1673013188507,0.5057977,16799.0,16798.0,1.34001145]
[1673013188724,0.5057977,16799.0,16798.0,1.74553104]
[1673013188971,0.5057977,16799.0,16798.0,0.011]
[1673013189252,0.05991238,16799.0,16798.0,0.011]
[1673013190525,0.05991238,16799.0,16798.0,0.606308]
[1673013190765,0.50576005,16799.0,16798.0,0.606308]
[1673013191296,0.86242169,16799.0,16798.0,2.14317547]
[1673013192054,0.50576005,16799.0,16798.0,0.782308]
[1673013192340,0.50573407,16799.0,16798.0,0.782308]
[1673013192566,0.05991238,16799.0,16798.0,0.782308]
[1673013193081,1.10226344,16799.0,16798.0,0.782308]
[1673013194069,0.65647045,16799.0,16798.0,0.782308]
[1673013194852,1.10224416,16799.0,16798.0,0.782308]
[1673013196353,0.65647045,16799.0,16798.0,0.782308]
[1673013196607,0.65647045,16799.0,16798.0,0.011]
[1673013197123,3.49300895,16799.0,16798.0,0.011]
[1673013197409,3.0001684,16799.0,16798.0,0.011]
[1673013197639,2.15978918,16799.0,16798.0,0.011]
[1673013197878,2.35978918,16799.0,16798.0,0.011]
[1673013198129,2.95506218,16799.0,16798.0,0.011]
[1673013198386,3.31536072,16799.0,16798.0,0.011]
[1673013198666,4.10965662,16799.0,16798.0,0.011]
[1673013198883,5.05523375,16799.0,16798.0,0.011]
[1673013199127,4.81755586,16799.0,16798.0,0.011]
[1673013199382,5.41282886,16799.0,16798.0,0.011]
[1673013199645,0.4,16798.0,16795.0,0.17858737]
[1673013199931,0.44586377,16796.0,16795.0,0.17858737]
[1673013200179,1.06634577,16796.0,16795.0,0.17858737]
[1673013200732,0.45436377,16796.0,16795.0,0.17958737]
[1673013200951,0.81103143,16796.0,16795.0,0.69033929]
[1673013201229,0.84203143,16796.0,16795.0,0.69233929]
[1673013201457,0.66365607,16796.0,16795.0,0.69233929]
[1673013201717,0.66365607,16796.0,16795.0,1.28775429]
[1673013202216,1.18635143,16796.0,16795.0,0.18058737]
[1673013202465,1.627988,16796.0,16795.0,0.18058737]
[1673013202717,1.18210532,16796.0,16795.0,0.18058737]
[1673013202987,1.79829119,16796.0,16793.0,0.52578864]
[1673013203232,0.44588958,16794.0,16793.0,0.43732827]
[1673013203766,0.44588958,16794.0,16792.0,0.00733649]
[1673013203767,0.4,16793.0,16792.0,0.00733649]
[1673013203979,2.06923338,16793.0,16792.0,0.00733649]
[1673013204230,2.15134292,16793.0,16792.0,0.00733649]
[1673013204509,2.9863875,16793.0,16792.0,0.00733649]
[1673013204733,3.0013875,16793.0,16792.0,0.01533649]
[1673013205086,2.16634292,16793.0,16792.0,0.01533649]
[1673013205776,3.33474212,16793.0,16792.0,0.00733649]
[1673013206023,2.25234292,16793.0,16792.0,0.00733649]
[1673013206269,2.45134292,16793.0,16792.0,0.00733649]
[1673013206527,3.6828735,16793.0,16792.0,0.00733649]
[1673013206784,4.08012726,16793.0,16792.0,0.00733649]
[1673013207304,3.97912726,16793.0,16792.0,0.00733649]
[1673013207574,4.11312726,16793.0,16792.0,0.00733649]
[1673013208089,4.64725146,16793.0,16792.0,0.00733649]
[1673013208629,6.0219835,16793.0,16792.0,0.00733649]
[1673013208913,7.02650561,16793.0,16792.0,0.00733649]
[1673013209148,0.4,16792.0,16791.0,0.00186104]
[1673013209400,6.35815649,16792.0,16791.0,0.00186104]
[1673013209658,5.29403957,16792.0,16791.0,0.00186104]
[1673013210216,4.96234905,16792.0,16791.0,0.00186104]
[1673013210465,3.73766217,16792.0,16791.0,0.00186104]
[1673013210712,4.03766217,16792.0,16791.0,0.00186104]
[1673013211227,4.03759145,16792.0,16791.0,0.00186104]
[1673013211557,4.39325115,16792.0,16791.0,0.00186104]
[1673013211732,4.75732992,16792.0,16791.0,0.00186104]
[1673013211991,5.11282484,16792.0,16791.0,0.00186104]
[1673013212276,4.75732992,16792.0,16791.0,0.00186104]
[1673013212516,5.1127744,16792.0,16791.0,0.00186104]
[1673013212789,4.75732992,16792.0,16791.0,0.00186104]
[1673013213023,4.75704945,16792.0,16791.0,0.00186104]
[1673013213279,4.84683185,16792.0,16791.0,0.00186104]
[1673013213547,4.31273942,16792.0,16791.0,0.00186104]
[1673013213809,5.02413185,16792.0,16791.0,0.00186104]
[1673013214343,6.12467119,16792.0,16791.0,0.00186104]
[1673013214596,7.94980128,16792.0,16791.0,0.00186104]
[1673013215410,8.31094612,16792.0,16791.0,0.00186104]
[1673013215613,8.44694612,16792.0,16791.0,0.00186104]
[1673013215861,8.31094612,16792.0,16791.0,0.00186104]
[1673013216135,8.44694612,16792.0,16791.0,0.00186104]
[1673013216357,0.4,16791.0,16790.0,0.00609968]
[1673013216650,5.23631899,16791.0,16790.0,0.00609968]
[1673013216875,5.29956214,16791.0,16790.0,0.00609968]
[1673013217383,5.83190251,16791.0,16790.0,0.00609968]
[1673013217630,5.96790251,16791.0,16790.0,0.00609968]
[1673013217913,5.43556214,16791.0,16790.0,0.00609968]
[1673013218648,5.29956214,16791.0,16790.0,0.00609968]
[1673013218902,5.43556214,16791.0,16790.0,0.00609968]
[1673013220171,5.87852355,16791.0,16790.0,0.00609968]
[1673013220701,6.94552355,16791.0,16790.0,0.00609968]
[1673013221490,6.945531,16791.0,16790.0,0.00609968]
[1673013221749,5.702831,16791.0,16790.0,0.00609968]
[1673013222010,6.19405397,16791.0,16790.0,0.00609968]
[1673013223553,5.92105397,16791.0,16790.0,0.00609968]
[1673013223838,4.84988012,16791.0,16790.0,0.00609968]
[1673013224090,4.55426485,16791.0,16790.0,0.00609968]
[1673013224600,4.28859271,16791.0,16790.0,0.00609968]
[1673013224856,4.55426485,16791.0,16790.0,0.00609968]
[1673013225382,4.42459271,16791.0,16790.0,0.00609968]
[1673013225676,4.3090638,16791.0,16790.0,0.00609968]
[1673013225901,3.78894994,16791.0,16790.0,0.00609968]
[1673013226170,3.07838667,16791.0,16790.0,0.00609968]
[1673013226681,3.7826818,16791.0,16790.0,0.00609968]
[1673013227180,3.7741818,16791.0,16790.0,0.00609968]
[1673013227442,3.1786248,16791.0,16790.0,0.00609968]
[1673013227731,2.03140913,16791.0,16790.0,0.00609968]
[1673013227959,3.23894813,16791.0,16790.0,0.00609968]
[1673013228235,3.36564114,16791.0,16790.0,0.00609968]
[1673013228481,3.23894813,16791.0,16790.0,0.00709968]
[1673013228755,3.40294813,16791.0,16790.0,0.00609968]
[1673013228997,3.54744813,16791.0,16790.0,0.00709968]
[1673013231327,3.34926125,16791.0,16790.0,0.00709968]
[1673013233098,2.75370425,16791.0,16790.0,0.00709968]
[1673013233365,3.16589305,16791.0,16790.0,0.00709968]
[1673013233635,1.32143698,16791.0,16790.0,0.00709968]
[1673013233887,1.91699398,16791.0,16790.0,0.00709968]
[1673013234147,1.32143698,16791.0,16790.0,0.00709968]
[1673013234697,0.72587998,16791.0,16790.0,0.00709968]
[1673013235734,1.02587998,16791.0,16790.0,0.00709968]
[1673013236042,1.26528905,16791.0,16790.0,0.00709968]
[1673013236497,1.44239675,16791.0,16790.0,0.00709968]
[1673013236755,1.26528905,16791.0,16790.0,0.00709968]
[1673013236997,0.72587998,16791.0,16790.0,0.00709968]
[1673013237500,1.02587998,16791.0,16790.0,0.00709968]
[1673013238017,0.90298768,16791.0,16790.0,0.00709968]
[1673013238275,0.1445,16791.0,16790.0,0.56644]
[1673013241126,0.1445,16791.0,16790.0,0.56634132]
[1673013241890,0.58727984,16791.0,16790.0,0.56634132]
[1673013242912,0.58727984,16791.0,16790.0,1.39873332]
[1673013242913,0.3216077,16791.0,16790.0,1.39873332]
[1673013243417,0.3216077,16791.0,16790.0,1.99432532]
[1673013243952,0.58727984,16791.0,16790.0,1.99432532]
[1673013244453,0.58727984,16791.0,16790.0,1.39873332]
[1673013244970,0.3131077,16791.0,16790.0,2.5040304]
[1673013245219,0.136,16791.0,16790.0,3.08927829]
[1673013245466,0.136,16791.0,16790.0,2.49368629]
[1673013246480,0.136,16791.0,16790.0,1.89809429]
[1673013247271,0.136,16791.0,16790.0,2.49368629]
[1673013247550,0.136,16791.0,16790.0,2.61218629]
[1673013247777,0.136,16791.0,16790.0,2.75827355]
[1673013248025,0.136,16791.0,16790.0,3.15827355]
[1673013248305,0.1771077,16793.0,16790.0,3.15727355]
[1673013248560,0.78642648,16793.0,16792.0,0.2363]
[1673013248810,1.05209862,16793.0,16792.0,0.2363]
[1673013249307,0.44277984,16793.0,16792.0,0.2363]
[1673013249577,0.44277984,16793.0,16792.0,0.1435]
[1673013249578,0.45577984,16793.0,16792.0,0.1435]
[1673013250058,0.45577984,16793.0,16792.0,1.45527871]
[1673013250059,0.45676308,16793.0,16792.0,1.45527871]
[1673013250636,0.013,16793.0,16792.0,2.36033377]
[1673013250640,0.013,16793.0,16792.0,2.27433225]
[1673013250913,0.013,16793.0,16792.0,1.57287871]
[1673013252309,0.013,16793.0,16792.0,0.97735771]
[1673013253083,0.19109094,16793.0,16792.0,0.97735771]
[1673013253331,0.013,16793.0,16792.0,0.97735771]
[1673013254347,0.19109094,16793.0,16792.0,0.97735771]
[1673013254603,0.013,16793.0,16792.0,0.97735771]
[1673013255422,0.013,16793.0,16792.0,1.57287871]
[1673013255923,0.19109094,16793.0,16792.0,1.57287871]
[1673013256172,0.19109094,16793.0,16792.0,2.16839971]
[1673013257178,0.19109094,16793.0,16792.0,2.64542071]
[1673013257179,0.013,16793.0,16792.0,2.64542071]
[1673013258479,0.19109094,16793.0,16792.0,2.64542071]
[1673013258750,0.013,16793.0,16792.0,2.64542071]
[1673013259002,0.19109094,16793.0,16792.0,2.64542071]
[1673013259474,0.19109094,16793.0,16792.0,0.738121]
[1673013259742,0.93170485,16793.0,16792.0,0.1426]
[1673013259986,1.38200902,16793.0,16792.0,0.025]
[1673013260495,1.82497788,16793.0,16792.0,0.025]
[1673013261024,1.55930574,16793.0,16792.0,0.025]
[1673013261290,2.15479174,16793.0,16792.0,0.02489672]
[1673013261576,2.15658036,16793.0,16792.0,0.02489672]
[1673013262082,1.80056877,16793.0,16792.0,0.02489672]
[1673013262334,1.66840216,16793.0,16792.0,0.02489672]
[1673013262608,2.26388816,16793.0,16792.0,0.02489672]
[1673013262896,1.66840216,16793.0,16792.0,0.02489672]
[1673013263113,2.28038416,16793.0,16792.0,0.02489672]
[1673013263365,1.8374153,16793.0,16792.0,0.02489672]
[1673013264136,1.62150367,16793.0,16792.0,0.02489672]
[1673013264405,1.8374153,16793.0,16792.0,0.02489672]
[1673013264665,2.1374153,16793.0,16792.0,0.02489672]
[1673013264914,2.36975567,16793.0,16792.0,0.02489672]
[1673013265456,2.66975567,16793.0,16792.0,0.02489672]
[1673013265675,2.36975567,16793.0,16792.0,0.02489672]
[1673013265947,3.06582534,16793.0,16792.0,0.02489672]
[1673013266470,2.76582534,16793.0,16792.0,0.02489672]
[1673013267234,3.06582534,16793.0,16792.0,0.02489672]
[1673013267490,3.64835004,16793.0,16792.0,0.02489672]
[1673013267762,4.84503636,16793.0,16792.0,0.02489672]
[1673013268017,5.24503636,16793.0,16792.0,0.02489672]
[1673013268280,5.24494858,16793.0,16792.0,0.02489672]
[1673013268547,4.6421679,16793.0,16792.0,0.02489672]
[1673013269323,4.74715568,16793.0,16790.0,0.006001]
[1673013269539,0.93486974,16791.0,16790.0,0.006001]
[1673013269788,4.30098758,16791.0,16790.0,0.006001]
[1673013270046,3.77461784,16791.0,16790.0,0.006001]
[1673013270581,3.90961784,16791.0,16790.0,0.008001]
[1673013271599,3.242153,16791.0,16790.0,0.008001]
[1673013271863,4.33915229,16791.0,16790.0,0.008001]
[1673013273335,3.94293073,16791.0,16790.0,0.008001]
[1673013274150,3.64293073,16791.0,16790.0,0.008001]
[1673013274423,3.04737373,16791.0,16790.0,0.008001]
[1673013277217,3.34737373,16791.0,16790.0,0.008001]
[1673013278318,3.04737373,16791.0,16790.0,0.008001]
[1673013278529,3.13840835,16791.0,16790.0,0.008001]
[1673013279026,4.12670408,16791.0,16790.0,0.008001]
[1673013279277,3.52497562,16791.0,16790.0,0.008001]
[1673013279531,3.92497562,16791.0,16790.0,0.008001]
[1673013279794,4.52670408,16791.0,16790.0,0.008001]
[1673013281059,3.93491608,16791.0,16790.0,0.008001]
[1673013281311,4.49520998,16791.0,16790.0,0.008001]
[1673013281581,3.93491608,16791.0,16790.0,0.008001]
[1673013281860,4.10373561,16791.0,16790.0,0.008001]
[1673013282165,4.30373561,16791.0,16790.0,0.008001]
[1673013282333,3.73491608,16791.0,16790.0,0.008001]
[1673013282607,4.44411456,16791.0,16790.0,0.008001]
[1673013282857,3.73491608,16791.0,16790.0,0.008001]
[1673013283632,4.32886375,16791.0,16790.0,0.008001]
[1673013283881,4.86116209,16791.0,16790.0,0.008001]
[1673013284131,4.32886375,16791.0,16790.0,0.008001]
[1673013284638,4.86116209,16791.0,16790.0,0.008001]
[1673013284896,4.32886375,16791.0,16790.0,0.008001]
[1673013285149,4.9264509,16791.0,16790.0,0.008001]
[1673013285400,4.32886375,16791.0,16790.0,0.008001]
[1673013285684,4.90019689,16791.0,16790.0,0.008001]
[1673013285945,4.29846843,16791.0,16790.0,0.008001]
[1673013286198,4.32886375,16791.0,16790.0,0.008001]
[1673013286940,4.97966209,16791.0,16790.0,0.008001]
[1673013287727,4.67571363,16791.0,16790.0,0.008001]
[1673013287977,4.71135297,16791.0,16790.0,0.008001]
[1673013289278,4.41357297,16791.0,16790.0,0.008001]
[1673013289589,4.41357297,16791.0,16790.0,0.00792418]
[1673013290898,4.97939702,16791.0,16790.0,0.00792418]
[1673013291417,4.97946371,16791.0,16790.0,0.00792418]
[1673013292198,4.37793363,16791.0,16790.0,0.00792418]
[1673013293488,4.67571363,16791.0,16790.0,0.00792418]
[1673013297356,4.55721363,16791.0,16790.0,0.00792418]
[1673013299154,4.55221363,16791.0,16790.0,0.00792418]
[1673013299408,4.5521417,16791.0,16790.0,0.00792418]
[1673013299925,5.06932628,16791.0,16790.0,0.00792418]
[1673013300439,4.97829166,16791.0,16790.0,0.00792418]
[1673013300695,4.46110708,16791.0,16790.0,0.00792418]
[1673013301979,5.02875203,16791.0,16790.0,0.00792418]
[1673013302498,4.99409787,16791.0,16790.0,0.00792418]
[1673013303030,4.26179953,16791.0,16790.0,0.00792418]
[1673013303273,4.14949412,16791.0,16790.0,0.00792418]
[1673013303536,3.96401953,16791.0,16790.0,0.00792418]
[1673013306873,4.26644022,16791.0,16790.0,0.00792418]
[1673013307121,3.66401953,16791.0,16790.0,0.00792418]
[1673013308143,3.96401953,16791.0,16790.0,0.00792418]
[1673013308881,3.43102874,16791.0,16790.0,0.00792418]
[1673013309140,4.53250944,16791.0,16790.0,0.00792418]
[1673013310202,3.91115737,16791.0,16790.0,0.00792418]
[1673013310457,4.63115429,16791.0,16790.0,0.00792418]
[1673013310984,5.14613687,16791.0,16790.0,0.00792418]
[1673013311241,3.91115737,16791.0,16790.0,0.00792418]
[1673013311494,4.93592535,16791.0,16790.0,0.00792418]
[1673013312812,4.42089243,16791.0,16790.0,0.00792418]
[1673013313312,4.935899,16791.0,16790.0,0.00792418]
[1673013313578,4.62616394,16791.0,16790.0,0.00792418]
[1673013313852,5.02051554,16791.0,16790.0,0.00792418]
[1673013314118,4.50550897,16791.0,16790.0,0.00792418]
[1673013314671,4.02538034,16791.0,16790.0,0.00792418]
[1673013315188,3.43102874,16791.0,16790.0,0.00792418]
[1673013315699,4.11929023,16791.0,16790.0,0.00792418]
[1673013316227,3.43102874,16791.0,16790.0,0.00792418]
[1673013316480,4.60780427,16791.0,16790.0,0.00792418]
[1673013316764,5.19337045,16791.0,16790.0,0.00792418]
[1673013317496,5.70825872,16791.0,16790.0,0.00792418]
[1673013318830,4.89337045,16791.0,16790.0,0.00792418]
[1673013319085,5.40833674,16791.0,16790.0,0.00792418]
[1673013319357,4.88481146,16791.0,16790.0,0.00605324]
[1673013319652,5.3204508,16791.0,16790.0,0.00605324]
[1673013319873,5.28481146,16791.0,16790.0,0.00605324]
[1673013320129,5.14981146,16791.0,16790.0,0.00405324]
[1673013320396,5.28581146,16791.0,16790.0,0.00405324]
[1673013321008,5.3214508,16791.0,16790.0,0.00405324]
[1673013321468,4.63479492,16791.0,16790.0,0.00405324]
[1673013321980,4.77079492,16791.0,16790.0,0.00405324]
[1673013323017,4.63479492,16791.0,16790.0,0.00405324]
[1673013323576,4.77079492,16791.0,16790.0,0.00405324]
[1673013325403,4.77079492,16791.0,16790.0,0.00310503]
[1673013328579,4.59469492,16791.0,16790.0,0.00310503]
[1673013330908,4.63033426,16791.0,16790.0,0.00310503]
[1673013331442,4.63033426,16791.0,16790.0,0.00238]
[1673013332490,4.92817426,16791.0,16790.0,0.00238]
[1673013336080,5.10577426,16791.0,16790.0,0.00238]
[1673013337167,5.16794883,16791.0,16790.0,0.00238]
[1673013337477,5.16794883,16791.0,16790.0,0.00018836]
[1673013337478,5.66389713,16791.0,16790.0,0.00018836]
[1673013337979,5.66384234,16791.0,16790.0,0.00018836]
[1673013338237,0.4,16790.0,16789.0,0.00693303]
[1673013338494,4.5907688,16790.0,16789.0,0.00693303]
[1673013338745,4.62640814,16790.0,16789.0,0.00693303]
[1673013339004,6.62640814,16790.0,16789.0,0.00693303]
[1673013339806,6.76240814,16790.0,16789.0,0.00693303]
[1673013340337,7.06025814,16790.0,16789.0,0.00693303]
[1673013340649,7.79381418,16790.0,16789.0,3e-08]
[1673013340843,7.79381418,16790.0,16788.0,0.00612338]
[1673013340844,0.4,16789.0,16788.0,0.00612338]
[1673013341098,4.49026732,16789.0,16788.0,0.00612338]
[1673013341357,4.52590666,16789.0,16788.0,0.00612338]